fUST/lending_fUST_20240531
["ID","MTS","AMOUNT","RATE_DAILY","PERIOD"]
[328244132,1717096247017,-151.0,0.00016988,2]
[328244133,1717096247028,-151.0,0.00016988,2]
[328244134,1717096247038,-151.0,0.00016988,2]
[328244135,1717096247048,-151.0,0.00016988,2]
[328244136,1717096247059,-151.0,0.00016988,2]
[328244137,1717096247068,-155.29385504,0.00016988,2]
[328244138,1717096247077,-31353.6424272,0.00016988,2]
[328244139,1717096247087,-257.75995234,0.00016989,2]
[328244140,1717096247096,-2404.21274999,0.00016989,2]
[328244141,1717096247106,-17159.48138257,0.00016989,2]
[328244142,1717096247118,-151.0,0.0001699,2]
[328244143,1717096247127,-151.0,0.0001699,2]
[328244144,1717096247136,-160.54727,0.0001699,2]
[328244145,1717096247147,-151.0,0.0001699,2]
[328244146,1717096247157,-151.0,0.0001699,2]
[328244147,1717096247166,-178.978486,0.0001699,2]
[328244148,1717096247175,-178.978486,0.0001699,2]
[328244149,1717096247185,-151.0,0.0001699,2]
[328244150,1717096247194,-455.087479,0.0001699,2]
[328244151,1717096247203,-455.087479,0.0001699,2]
[328244152,1717096247213,-151.0,0.0001699,2]
[328244153,1717096247223,-151.0,0.0001699,2]
[328244154,1717096247232,-151.0,0.0001699,2]
[328244155,1717096247242,-292.197804,0.0001699,2]
[328244156,1717096247251,-151.0,0.0001699,2]
[328244157,1717096247262,-151.0,0.0001699,2]
[328244158,1717096247272,-478.247177,0.0001699,2]
[328244159,1717096247282,-478.247177,0.0001699,2]
[328244160,1717096247290,-151.0,0.0001699,2]
[328244161,1717096247300,-156.817375,0.0001699,2]
[328244162,1717096247309,-156.817375,0.0001699,2]
[328244163,1717096247319,-151.0,0.0001699,2]
[328244164,1717096247329,-1331.711087,0.0001699,2]
[328244165,1717096247339,-1331.711087,0.0001699,2]
[328244166,1717096247349,-256.425328,0.0001699,2]
[328244167,1717096247358,-256.425328,0.0001699,2]
[328244168,1717096247367,-168.310812,0.0001699,2]
[328244169,1717096247379,-168.310812,0.0001699,2]
[328244170,1717096247390,-151.0,0.0001699,2]
[328244171,1717096247401,-151.0,0.0001699,2]
[328244172,1717096247411,-1154.885384,0.0001699,2]
[328244173,1717096247420,-261.389808,0.0001699,2]
[328244174,1717096247430,-1154.885384,0.0001699,2]
[328244175,1717096247439,-261.389808,0.0001699,2]
[328244176,1717096247449,-397.396474,0.0001699,2]
[328244177,1717096247460,-397.396474,0.0001699,2]
[328244178,1717096247470,-151.0,0.0001699,2]
[328244179,1717096247479,-151.0,0.0001699,2]
[328244180,1717096247488,-151.0,0.0001699,2]
[328244181,1717096247497,-151.0,0.0001699,2]
[328244182,1717096247507,-151.0,0.0001699,2]
[328244183,1717096247516,-1342.26649227,0.0001699,2]
[328244184,1717096247525,-283.89725164,0.0001699,2]
[328244185,1717096247534,-1373.36058678,0.0001699,2]
[328244186,1717096247544,-1685.54934894,0.0001699,2]
[328244187,1717096247554,-566.01283752,0.0001699,2]
[328244188,1717096247563,-419.54599337,0.0001699,2]
[328244189,1717096247572,-164.28466186,0.00016991,2]
[328244190,1717096247581,-180.38717709,0.00016991,2]
[328244191,1717096247591,-151.0,0.00016992,2]
[328244192,1717096247600,-151.0,0.00016992,2]
[328244193,1717096247702,-151.0,0.00016992,2]
[328244194,1717096247713,-178.978486,0.00016992,2]
[328244195,1717096247722,-178.978486,0.00016992,2]
[328244196,1717096247731,-455.087479,0.00016992,2]
[328244197,1717096247740,-455.087479,0.00016992,2]
[328244198,1717096247749,-151.0,0.00016992,2]
[328244199,1717096247758,-263.061871,0.00016992,2]
[328244200,1717096247767,-151.0,0.00016992,2]
[328244201,1717096247776,-151.0,0.00016992,2]
[328244202,1717096247786,-478.247177,0.00016992,2]
[328244203,1717096247795,-478.247177,0.00016992,2]
[328244204,1717096247803,-152.325089,0.00016992,2]
[328244205,1717096247812,-156.817375,0.00016992,2]
[328244206,1717096247821,-156.817375,0.00016992,2]
[328244207,1717096247830,-151.0,0.00016992,2]
[328244208,1717096247839,-1331.711087,0.00016992,2]
[328244209,1717096247848,-1331.711087,0.00016992,2]
[328244210,1717096247857,-256.425328,0.00016992,2]
[328244211,1717096247866,-256.425328,0.00016992,2]
[328244212,1717096247875,-168.310812,0.00016992,2]
[328244213,1717096247884,-168.310812,0.00016992,2]
[328244214,1717096247895,-151.0,0.00016992,2]
[328244215,1717096247904,-151.0,0.00016992,2]
[328244216,1717096247913,-1154.885384,0.00016992,2]
[328244217,1717096247923,-261.389808,0.00016992,2]
[328244218,1717096247932,-1154.885384,0.00016992,2]
[328244219,1717096247941,-261.389808,0.00016992,2]
[328244220,1717096247950,-397.396474,0.00016992,2]
[328244221,1717096247959,-397.396474,0.00016992,2]
[328244222,1717096247968,-151.0,0.00016992,2]
[328244223,1717096247976,-151.0,0.00016992,2]
[328244224,1717096247985,-151.0,0.00016992,2]
[328244225,1717096247995,-151.0,0.00016992,2]
[328244226,1717096248004,-11072.80660024,0.00016992,2]
[328244227,1717096248013,-3792.79999999,0.00016992,2]
[328244228,1717096248022,-155.23710437,0.00016992,2]
[328244229,1717096248031,-354.56402342,0.00016992,2]
[328244230,1717096248040,-155.17522038,0.00016992,2]
[328244231,1717096248049,-151.0,0.00016995,2]
[328244232,1717096248058,-605.48713663,0.000185,2]
[328244233,1717096248067,-1100.49107843,0.000189,2]
[328244234,1717096248076,-53581.0,0.00019,2]
[328244235,1717096248086,-151.0,0.00019,2]
[328244236,1717096248095,-151.0,0.00019,2]
[328244237,1717096248104,-151.0,0.00019,2]
[328244238,1717096248113,-178.978486,0.00019,2]
[328244239,1717096248122,-178.978486,0.00019,2]
[328244240,1717096248131,-455.087479,0.00019,2]
[328244241,1717096248141,-455.087479,0.00019,2]
[328244242,1717096248151,-151.0,0.00019,2]
[328244243,1717096248159,-151.0,0.00019,2]
[328244244,1717096248168,-151.0,0.00019,2]
[328244245,1717096248178,-478.247177,0.00019,2]
[328244246,1717096248187,-478.247177,0.00019,2]
[328244247,1717096248196,-156.817375,0.00019,2]
[328244248,1717096248206,-156.817375,0.00019,2]
[328244249,1717096248215,-151.0,0.00019,2]
[328244250,1717096248225,-1331.711087,0.00019,2]
[328244251,1717096248235,-1331.711087,0.00019,2]
[328244252,1717096248244,-256.425328,0.00019,2]
[328244253,1717096248253,-256.425328,0.00019,2]
[328244254,1717096248263,-168.310812,0.00019,2]
[328244255,1717096248272,-168.310812,0.00019,2]
[328244256,1717096248281,-151.0,0.00019,2]
[328244257,1717096248290,-1154.885384,0.00019,2]
[328244258,1717096248299,-261.389808,0.00019,2]
[328244259,1717096248309,-1154.885384,0.00019,2]
[328244260,1717096248319,-261.389808,0.00019,2]
[328244261,1717096248328,-397.396474,0.00019,2]
[328244262,1717096248337,-397.396474,0.00019,2]
[328244263,1717096248347,-151.0,0.00019,2]
[328244264,1717096248356,-151.0,0.00019,2]
[328244265,1717096248365,-151.0,0.00019,2]
[328244266,1717096248374,-151.0,0.00019,2]
[328244267,1717096248389,-192.57058736,0.00019173,2]
[328244268,1717096248399,-156.0776157,0.00019173,2]
[328244269,1717096248409,-634.00931592,0.00019173,2]
[328244270,1717096248419,-190.86188111,0.00019174,2]
[328244271,1717096248428,-293.30260328,0.00019174,2]
[328244272,1717096248438,-506.51848556,0.00019175,2]
[328244273,1717096248447,-500.0,0.00019178,2]
[328244274,1717096248456,-508.63260606,0.00019178,2]
[328244275,1717096248467,-190.92159544,0.00019178,2]
[328244276,1717096248476,-500.0,0.00019178,2]
[328244277,1717096248486,-1651.67476084,0.00019178,2]
[328244278,1717096248495,-500.0,0.00019178,2]
[328244279,1717096248505,-500.0,0.00019178,2]
[328244280,1717096248514,-500.0,0.00019178,2]
[328244281,1717096248524,-1651.67476084,0.00019178,2]
[328244282,1717096248534,-557.24442834,0.00019178,2]
[328244283,1717096248543,-500.0,0.00019178,2]
[328244284,1717096248554,-1651.67476084,0.00019178,2]
[328244285,1717096248563,-500.0,0.00019178,2]
[328244286,1717096248572,-500.0,0.00019178,2]
[328244287,1717096248582,-1651.67476084,0.00019178,2]
[328244288,1717096248591,-500.0,0.00019178,2]
[328244289,1717096248601,-1651.67476084,0.00019178,2]
[328244290,1717096248610,-500.0,0.00019178,2]
[328244291,1717096248619,-500.0,0.00019178,2]
[328244292,1717096248628,-1651.67476084,0.00019178,2]
[328244293,1717096248637,-479.40373245,0.00019178,2]
[328244294,1717096248646,-500.0,0.00019178,2]
[328244295,1717096248656,-1651.67476084,0.00019178,2]
[328244296,1717096248665,-500.0,0.00019178,2]
[328244297,1717096248675,-1651.67476084,0.00019178,2]
[328244298,1717096248684,-1651.67476084,0.00019178,2]
[328244299,1717096248692,-500.0,0.00019178,2]
[328244300,1717096248702,-500.0,0.00019178,2]
[328244301,1717096248711,-1651.67476084,0.00019178,2]
[328244302,1717096248720,-500.0,0.00019178,2]
[328244303,1717096248729,-500.0,0.00019178,2]
[328244304,1717096248739,-1651.67476084,0.00019178,2]
[328244305,1717096248748,-500.0,0.00019178,2]
[328244306,1717096248759,-1651.67476084,0.00019178,2]
[328244307,1717096248768,-1651.67476084,0.00019178,2]
[328244308,1717096248778,-500.0,0.00019178,2]
[328244309,1717096248788,-1651.67476084,0.00019178,2]
[328244310,1717096248799,-1651.67476084,0.00019178,2]
[328244311,1717096248810,-1651.67476084,0.00019178,2]
[328244312,1717096248819,-1651.67476084,0.00019178,2]
[328244313,1717096248829,-1651.67476084,0.00019178,2]
[328244314,1717096248840,-501.51755121,0.00019178,2]
[328244315,1717096248851,-223.51791126,0.00019178,2]
[328244316,1717096248863,-1651.67476084,0.00019178,2]
[328244317,1717096248873,-1651.67476084,0.00019178,2]
[328244318,1717096248884,-1651.67476084,0.00019178,2]
[328244319,1717096248895,-500.0,0.00019178,2]
[328244320,1717096248904,-1651.67476084,0.00019178,2]
[328244321,1717096248914,-1651.67476084,0.00019178,2]
[328244322,1717096248923,-1651.67476084,0.00019178,2]
[328244323,1717096248933,-1651.67476084,0.00019178,2]
[328244324,1717096248942,-1651.67476084,0.00019178,2]
[328244325,1717096248952,-1651.67476084,0.00019178,2]
[328244326,1717096248963,-1651.67476084,0.00019178,2]
[328244327,1717096248974,-1651.67476084,0.00019178,2]
[328244328,1717096248984,-1651.67476084,0.00019178,2]
[328244329,1717096248995,-1651.67476084,0.00019178,2]
[328244330,1717096249004,-1651.67476084,0.00019178,2]
[328244331,1717096249014,-1651.67476084,0.00019178,2]
[328244332,1717096249024,-1651.67476084,0.00019178,2]
[328244333,1717096249034,-1651.67476084,0.00019178,2]
[328244334,1717096249044,-1651.67476084,0.00019178,2]
[328244335,1717096249054,-1651.67476084,0.00019178,2]
[328244336,1717096249063,-1651.67476084,0.00019178,2]
[328244337,1717096249073,-1651.67476084,0.00019178,2]
[328244338,1717096249084,-1651.67476084,0.00019178,2]
[328244339,1717096249095,-500.0,0.00019178,2]
[328244340,1717096249107,-500.0,0.00019178,2]
[328244341,1717096249118,-260.0,0.00019178,2]
[328244342,1717096249127,-1600.85399896,0.00019178,2]
[328244343,1717096249137,-1600.85399896,0.00019178,2]
[328244344,1717096249148,-1600.85399896,0.00019178,2]
[328244345,1717096249159,-1600.85399896,0.00019178,2]
[328244346,1717096249169,-1600.85399896,0.00019178,2]
[328244347,1717096249178,-1600.85399896,0.00019178,2]
[328244348,1717096249187,-1600.85399896,0.00019178,2]
[328244349,1717096249197,-1600.85399896,0.00019178,2]
[328244350,1717096249208,-1600.85399896,0.00019178,2]
[328244351,1717096249218,-1600.85399896,0.00019178,2]
[328244352,1717096249228,-1600.85399896,0.00019178,2]
[328244353,1717096249237,-1600.85399896,0.00019178,2]
[328244354,1717096249247,-1600.85399896,0.00019178,2]
[328244355,1717096249257,-1600.85399896,0.00019178,2]
[328244356,1717096249267,-1600.85399896,0.00019178,2]
[328244357,1717096249276,-1600.85399896,0.00019178,2]
[328244358,1717096249285,-1600.85399896,0.00019178,2]
[328244359,1717096249383,-1600.85399896,0.00019178,2]
[328244360,1717096249393,-1600.85399896,0.00019178,2]
[328244361,1717096249406,-1600.85399896,0.00019178,2]
[328244362,1717096249415,-1600.85399896,0.00019178,2]
[328244363,1717096249426,-1600.85399896,0.00019178,2]
[328244364,1717096249436,-1600.85399896,0.00019178,2]
[328244365,1717096249445,-1600.85399896,0.00019178,2]
[328244366,1717096249457,-1600.85399896,0.00019178,2]
[328244367,1717096249466,-1600.85399909,0.00019178,2]
[328244368,1717096249475,-151.0,0.00019178,2]
[328244369,1717096249485,-198.501295,0.00019178,2]
[328244370,1717096249494,-151.0,0.00019178,2]
[328244371,1717096249503,-153.091958,0.00019178,2]
[328244372,1717096249512,-151.0,0.00019178,2]
[328244373,1717096249521,-151.0,0.00019178,2]
[328244374,1717096249530,-151.0,0.00019178,2]
[328244375,1717096249539,-180.25364,0.00019178,2]
[328244376,1717096249548,-178.978486,0.00019178,2]
[328244377,1717096249557,-178.978486,0.00019178,2]
[328244378,1717096249566,-178.978486,0.00019178,2]
[328244379,1717096249575,-178.978486,0.00019178,2]
[328244380,1717096249584,-178.978486,0.00019178,2]
[328244381,1717096249593,-178.978486,0.00019178,2]
[328244382,1717096249602,-178.978486,0.00019178,2]
[328244383,1717096249611,-178.978486,0.00019178,2]
[328244384,1717096249620,-178.978486,0.00019178,2]
[328244385,1717096249630,-178.978486,0.00019178,2]
[328244386,1717096249639,-178.978486,0.00019178,2]
[328244387,1717096249650,-178.978496,0.00019178,2]
[328244388,1717096249659,-455.087479,0.00019178,2]
[328244389,1717096249669,-455.087479,0.00019178,2]
[328244390,1717096249680,-455.087479,0.00019178,2]
[328244391,1717096249690,-455.087479,0.00019178,2]
[328244392,1717096249699,-455.087479,0.00019178,2]
[328244393,1717096249708,-455.087479,0.00019178,2]
[328244394,1717096249718,-455.087479,0.00019178,2]
[328244395,1717096249727,-455.087479,0.00019178,2]
[328244396,1717096249736,-455.087479,0.00019178,2]
[328244397,1717096249746,-455.087479,0.00019178,2]
[328244398,1717096249755,-455.087479,0.00019178,2]
[328244399,1717096249764,-455.08747022,0.00019178,2]
[328244400,1717096249774,-151.0,0.00019178,2]
[328244401,1717096249783,-151.0,0.00019178,2]
[328244402,1717096249793,-151.0,0.00019178,2]
[328244403,1717096249802,-151.0,0.00019178,2]
[328244404,1717096249811,-151.0,0.00019178,2]
[328244405,1717096249821,-151.0,0.00019178,2]
[328244406,1717096249831,-151.0,0.00019178,2]
[328244407,1717096249840,-151.0,0.00019178,2]
[328244408,1717096249849,-151.0,0.00019178,2]
[328244409,1717096249858,-151.0,0.00019178,2]
[328244410,1717096249867,-151.0,0.00019178,2]
[328244411,1717096249877,-151.0,0.00019178,2]
[328244412,1717096249886,-151.0,0.00019178,2]
[328244413,1717096249895,-151.0,0.00019178,2]
[328244414,1717096249905,-151.0,0.00019178,2]
[328244415,1717096249914,-151.0,0.00019178,2]
[328244416,1717096249923,-478.247177,0.00019178,2]
[328244417,1717096249932,-478.247177,0.00019178,2]
[328244418,1717096249942,-478.247177,0.00019178,2]
[328244419,1717096249951,-478.247177,0.00019178,2]
[328244420,1717096249960,-478.247177,0.00019178,2]
[328244421,1717096249969,-478.247177,0.00019178,2]
[328244422,1717096249978,-478.247177,0.00019178,2]
[328244423,1717096249987,-478.247177,0.00019178,2]
[328244424,1717096249996,-478.247177,0.00019178,2]
[328244425,1717096250005,-478.247177,0.00019178,2]
[328244426,1717096250014,-478.247177,0.00019178,2]
[328244427,1717096250023,-478.247183,0.00019178,2]
[328244428,1717096250033,-156.817375,0.00019178,2]
[328244429,1717096250042,-156.817375,0.00019178,2]
[328244430,1717096250051,-156.817375,0.00019178,2]
[328244431,1717096250061,-156.817375,0.00019178,2]
[328244432,1717096250070,-156.817375,0.00019178,2]
[328244433,1717096250079,-156.817375,0.00019178,2]
[328244434,1717096250089,-156.817375,0.00019178,2]
[328244435,1717096250098,-156.817375,0.00019178,2]
[328244436,1717096250107,-156.817375,0.00019178,2]
[328244437,1717096250117,-156.817375,0.00019178,2]
[328244438,1717096250126,-156.817375,0.00019178,2]
[328244439,1717096250136,-156.817383,0.00019178,2]
[328244440,1717096250145,-222.204325,0.00019178,2]
[328244441,1717096250155,-1331.711087,0.00019178,2]
[328244442,1717096250164,-1331.711087,0.00019178,2]
[328244443,1717096250173,-1331.711087,0.00019178,2]
[328244444,1717096250182,-1331.711087,0.00019178,2]
[328244445,1717096250191,-1331.711087,0.00019178,2]
[328244446,1717096250201,-1331.711087,0.00019178,2]
[328244447,1717096250210,-1331.711087,0.00019178,2]
[328244448,1717096250220,-1331.711087,0.00019178,2]
[328244449,1717096250229,-1331.711087,0.00019178,2]
[328244450,1717096250238,-1331.711087,0.00019178,2]
[328244451,1717096250248,-1331.711087,0.00019178,2]
[328244452,1717096250257,-1331.71109411,0.00019178,2]
[328244453,1717096250267,-256.425328,0.00019178,2]
[328244454,1717096250276,-256.425328,0.00019178,2]
[328244455,1717096250285,-256.425328,0.00019178,2]
[328244456,1717096250295,-256.425328,0.00019178,2]
[328244457,1717096250304,-256.425328,0.00019178,2]
[328244458,1717096250312,-256.425328,0.00019178,2]
[328244459,1717096250322,-256.425328,0.00019178,2]
[328244460,1717096250331,-256.425328,0.00019178,2]
[328244461,1717096250340,-256.425328,0.00019178,2]
[328244462,1717096250350,-256.425328,0.00019178,2]
[328244463,1717096250359,-256.425328,0.00019178,2]
[328244464,1717096250368,-256.425338,0.00019178,2]
[328244465,1717096250378,-168.310812,0.00019178,2]
[328244466,1717096250389,-168.310812,0.00019178,2]
[328244467,1717096250400,-168.310812,0.00019178,2]
[328244468,1717096250409,-168.310812,0.00019178,2]
[328244469,1717096250418,-168.310812,0.00019178,2]
[328244470,1717096250428,-168.310812,0.00019178,2]
[328244471,1717096250437,-168.310812,0.00019178,2]
[328244472,1717096250447,-168.310812,0.00019178,2]
[328244473,1717096250459,-168.310812,0.00019178,2]
[328244474,1717096250469,-168.310812,0.00019178,2]
[328244475,1717096250478,-168.310812,0.00019178,2]
[328244476,1717096250488,-168.310809,0.00019178,2]
[328244477,1717096250497,-151.0,0.00019178,2]
[328244478,1717096250507,-151.0,0.00019178,2]
[328244479,1717096250516,-151.0,0.00019178,2]
[328244480,1717096250525,-1154.885384,0.00019178,2]
[328244481,1717096250534,-1154.885384,0.00019178,2]
[328244482,1717096250544,-1154.885384,0.00019178,2]
[328244483,1717096250554,-1154.885384,0.00019178,2]
[328244484,1717096250563,-1154.885384,0.00019178,2]
[328244485,1717096250572,-1154.885384,0.00019178,2]
[328244486,1717096250582,-261.389808,0.00019178,2]
[328244487,1717096250591,-261.389808,0.00019178,2]
[328244488,1717096250600,-261.389808,0.00019178,2]
[328244489,1717096250610,-1154.885384,0.00019178,2]
[328244490,1717096250619,-1154.885384,0.00019178,2]
[328244491,1717096250629,-1154.885384,0.00019178,2]
[328244492,1717096250638,-1154.885384,0.00019178,2]
[328244493,1717096250647,-261.389808,0.00019178,2]
[328244494,1717096250657,-261.389808,0.00019178,2]
[328244495,1717096250667,-261.389808,0.00019178,2]
[328244496,1717096250676,-1154.885384,0.00019178,2]
[328244497,1717096250686,-1154.885385,0.00019178,2]
[328244498,1717096250695,-261.389808,0.00019178,2]
[328244499,1717096250705,-261.389808,0.00019178,2]
[328244500,1717096250714,-261.389808,0.00019178,2]
[328244501,1717096250724,-261.389808,0.00019178,2]
[328244502,1717096250734,-261.389808,0.00019178,2]
[328244503,1717096250743,-261.389808,0.00019178,2]
[328244504,1717096250752,-397.396474,0.00019178,2]
[328244505,1717096250762,-397.396474,0.00019178,2]
[328244506,1717096250771,-397.396474,0.00019178,2]
[328244507,1717096250780,-397.396474,0.00019178,2]
[328244508,1717096250789,-397.396474,0.00019178,2]
[328244509,1717096250799,-397.396474,0.00019178,2]
[328244510,1717096250808,-397.396474,0.00019178,2]
[328244511,1717096250897,-397.396474,0.00019178,2]
[328244512,1717096250906,-397.396474,0.00019178,2]
[328244513,1717096250915,-397.396474,0.00019178,2]
[328244514,1717096250924,-397.396474,0.00019178,2]
[328244515,1717096250934,-397.396468,0.00019178,2]
[328244516,1717096250943,-151.0,0.00019178,2]
[328244517,1717096250953,-208.82264,0.00019178,2]
[328244518,1717096250962,-151.0,0.00019178,2]
[328244519,1717096250971,-151.0,0.00019178,2]
[328244520,1717096250981,-151.0,0.00019178,2]
[328244521,1717096250990,-151.0,0.00019178,2]
[328244522,1717096250999,-173.741279,0.00019178,2]
[328244523,1717096251008,-151.0,0.00019178,2]
[328244524,1717096251017,-151.0,0.00019178,2]
[328244525,1717096251026,-151.0,0.00019178,2]
[328244526,1717096251035,-292.84785,0.00019178,2]
[328244527,1717096251044,-170.6361151,0.00019178,2]
[328244528,1717096251053,-163.446762,0.00019178,2]
[328244529,1717096251063,-167.65055,0.00019178,2]
[328244530,1717096251072,-160.0,0.00019312,2]
[328244531,1717096251081,-320.0,0.0001986,2]
[328244532,1717096251091,-20907.68050346,0.0002,2]
[328244533,1717096251100,-1352.70946957,0.0002,2]
[328244534,1717096251109,-154.9690062,0.0002,2]
[328244535,1717096251118,-190.9342862,0.0002,2]
[328244536,1717096251127,-23769.48563905,0.0002,2]
[328244537,1717096251137,-2951.88076881,0.0002,2]
[328244538,1717096251147,-11999.20501447,0.0002,2]
[328244539,1717096251157,-400.0,0.0002,2]
[328244540,1717096251166,-280.65986406,0.0002,2]
[328244541,1717096251175,-82638.09773324,0.0002,2]
[328244542,1717096251185,-155.00680195,0.0002,2]
[328244543,1717096251195,-155.075128,0.0002,2]
[328244544,1717096251204,-528.06456025,0.0002,4]
[328244545,1717096251214,-282.0,0.0002,2]
[328244546,1717096251224,-171.678656,0.0002,2]
[328244547,1717096251233,-1012.904472,0.0002,2]
[328244548,1717096251243,-241.83265717,0.00020009,2]
[328244549,1717096251252,-297.43205835,0.00020408,2]
[328244550,1717096251262,-3000.0,0.00020547,2]
[328244551,1717096251272,-1923.63830344,0.00020547,2]
[328244552,1717096251281,-254.03417928,0.00021,2]
[328244553,1717096251291,-454.01731962,0.00021,2]
[328244554,1717096251300,-5875.06441205,0.00021,2]
[328244555,1717096251309,-3000.0,0.000215,2]
[328244556,1717096251319,-3000.0,0.0002151,2]
[328244557,1717096251328,-3000.0,0.0002152,2]
[328244558,1717096251340,-3000.0,0.0002153,2]
[328244559,1717096251350,-3000.0,0.0002154,2]
[328244560,1717096251360,-3000.0,0.0002155,2]
[328244561,1717096251369,-3000.0,0.0002156,2]
[328244562,1717096251380,-3000.0,0.0002157,2]
[328244563,1717096251391,-3000.0,0.0002158,2]
[328244564,1717096251401,-3000.0,0.0002159,2]
[328244565,1717096251411,-3000.0,0.000216,2]
[328244566,1717096251421,-3000.0,0.0002161,2]
[328244567,1717096251430,-3000.0,0.0002162,2]
[328244568,1717096251439,-3000.0,0.0002163,2]
[328244569,1717096251448,-3000.0,0.0002164,2]
[328244570,1717096251459,-3000.0,0.0002165,2]
[328244571,1717096251469,-3000.0,0.0002166,2]
[328244572,1717096251478,-3000.0,0.0002167,2]
[328244573,1717096251487,-3000.0,0.0002168,2]
[328244574,1717096251497,-3000.0,0.0002169,2]
[328244575,1717096251506,-4205.904838,0.000217,2]
[328244576,1717096251515,-166.666666,0.00021918,2]
[328244577,1717096251524,-586.3613,0.00021918,2]
[328244578,1717096251533,-586.3613,0.00021918,2]
[328244579,1717096251542,-586.3613,0.00021918,2]
[328244580,1717096251552,-586.3613,0.00021918,2]
[328244581,1717096251561,-586.3613,0.00021918,2]
[328244582,1717096251571,-586.3613,0.00021918,2]
[328244583,1717096251580,-586.3613,0.00021918,2]
[328244584,1717096251589,-586.3613,0.00021918,2]
[328244585,1717096251599,-586.3613,0.00021918,2]
[328244586,1717096251608,-586.3613,0.00021918,2]
[328244587,1717096251618,-586.3613,0.00021918,2]
[328244588,1717096251628,-586.3613,0.00021918,2]
[328244589,1717096251638,-586.3613,0.00021918,2]
[328244590,1717096251649,-586.3613,0.00021918,2]
[328244591,1717096251658,-586.3613,0.00021918,2]
[328244592,1717096251667,-586.3613,0.00021918,2]
[328244593,1717096251680,-586.3613,0.00021918,2]
[328244594,1717096251691,-586.3613,0.00021918,2]
[328244595,1717096251700,-586.3613,0.00021918,2]
[328244596,1717096251710,-586.361294,0.00021918,2]
[328244597,1717096251720,-1201.204284,0.00021918,2]
[328244598,1717096251731,-1201.204284,0.00021918,2]
[328244599,1717096251740,-1201.204284,0.00021918,2]
[328244600,1717096251750,-1201.204284,0.00021918,2]
[328244601,1717096251760,-1201.204284,0.00021918,2]
[328244602,1717096251769,-1201.204284,0.00021918,2]
[328244603,1717096251778,-10000.0,0.00021918,2]
[328244604,1717096251787,-1201.204284,0.00021918,2]
[328244605,1717096251796,-1201.204284,0.00021918,2]
[328244606,1717096251806,-1201.204284,0.00021918,2]
[328244607,1717096251815,-1201.204284,0.00021918,2]
[328244608,1717096251824,-1201.204284,0.00021918,2]
[328244609,1717096251833,-1201.204284,0.00021918,2]
[328244610,1717096251843,-1201.204284,0.00021918,2]
[328244611,1717096251852,-1201.204284,0.00021918,2]
[328244612,1717096251861,-1201.204284,0.00021918,2]
[328244613,1717096251870,-1201.204284,0.00021918,2]
[328244614,1717096251879,-1201.204284,0.00021918,2]
[328244615,1717096251888,-1201.204284,0.00021918,2]
[328244616,1717096251898,-1201.204284,0.00021918,2]
[328244617,1717096251907,-1201.204279,0.00021918,2]
[328244618,1717096251917,-151.0,0.00021918,2]
[328244619,1717096251927,-151.0,0.00021918,2]
[328244620,1717096251936,-151.0,0.00021918,2]
[328244621,1717096251946,-151.0,0.00021918,2]
[328244622,1717096251956,-151.0,0.00021918,2]
[328244623,1717096251965,-151.0,0.00021918,2]
[328244624,1717096251974,-151.0,0.00021918,2]
[328244625,1717096251983,-151.0,0.00021918,2]
[328244626,1717096251993,-151.0,0.00021918,2]
[328244627,1717096252002,-164.791064,0.00021918,2]
[328244628,1717096252011,-151.0,0.00021918,2]
[328244629,1717096252019,-9175.23470975,0.00022,2]
[328244630,1717096252029,-689.64282064,0.00022362,2]
[328244631,1717096252038,-166.666666,0.00022431,2]